[Event "Titled Tuesday Blitz June 28 Early 2022"]
[White "Nenezic, Marko"]
[Black "Boraso, Alessio"]
[WhiteFideId "912123"]
[BlackFideId "848077"]
[WhiteElo "2432"]
[BlackElo "2286"]
[Result "1-0"]
[Round "03"]
[TimeControl "180+1"]
[Date "2022.06.28"]
[WhiteClock "0:01:27"]
[BlackClock "0:00:05"]

1. d4 {[%clk 0:03:00]}  Nf6 {[%clk 0:02:59]} 2. c4 {[%clk 0:03:00]}  c5 {[%clk 0:02:59]} 3. d5 {[%clk 0:03:00]}  e6 {[%clk 0:02:59]} 4. Nc3 {[%clk 0:03:00]}  exd5 {[%clk 0:02:59]} 5. cxd5 {[%clk 0:03:01]}  d6 {[%clk 0:03:00]} 6. e4 {[%clk 0:03:02]}  g6 {[%clk 0:03:00]} 7. f4 {[%clk 0:03:02]}  Bg7 {[%clk 0:03:00]} 8. Bb5+ {[%clk 0:03:03]}  Nfd7 {[%clk 0:02:59]} 9. Nf3 {[%clk 0:03:03]}  O-O {[%clk 0:02:58]} 10. O-O {[%clk 0:03:03]}  Na6 {[%clk 0:02:56]} 11. Kh1 {[%clk 0:03:01]}  Nc7 {[%clk 0:02:54]} 12. Bd3 {[%clk 0:03:01]}  b6 {[%clk 0:02:50]} 13. a4 {[%clk 0:02:59]}  Ba6 {[%clk 0:02:49]} 14. Nb5 {[%clk 0:03:00]}  Bxb5 {[%clk 0:02:35]} 15. axb5 {[%clk 0:03:00]}  Re8 {[%clk 0:02:35]} 16. Qc2 {[%clk 0:02:35]}  Qc8 {[%clk 0:02:19]} 17. Bd2 {[%clk 0:02:27]}  a6 {[%clk 0:02:17]} 18. bxa6 {[%clk 0:02:27]}  Nxa6 {[%clk 0:02:13]} 19. Bb5 {[%clk 0:02:27]}  Nc7 {[%clk 0:01:57]} 20. Rxa8 {[%clk 0:02:22]}  Nxa8 {[%clk 0:01:58]} 21. Bc3 {[%clk 0:02:16]}  Nc7 {[%clk 0:01:54]} 22. Bc6 {[%clk 0:02:16]}  Bxc3 {[%clk 0:01:37]} 23. bxc3 {[%clk 0:02:14]}  Re7 {[%clk 0:01:35]} 24. e5 {[%clk 0:02:14]}  Ne8 {[%clk 0:01:18]} 25. Re1 {[%clk 0:02:03]}  Qc7 {[%clk 0:01:09]} 26. Qe4 {[%clk 0:01:46]}  f5 {[%clk 0:00:26]} 27. exd6 {[%clk 0:01:32]}  fxe4 {[%clk 0:00:15]} 28. dxc7 {[%clk 0:01:31]}  exf3 {[%clk 0:00:09]} 29. Rxe7 {[%clk 0:01:29]}  f2 {[%clk 0:00:09]} 30. Rxe8+ {[%clk 0:01:29]}  Kf7 {[%clk 0:00:09]} 31. Bb5 {[%clk 0:01:29]}  c4 {[%clk 0:00:05]} 32. Bxc4 {[%clk 0:01:29]}  b5 {[%clk 0:00:06]} 33. Bf1 {[%clk 0:01:29]}  Nb6 {[%clk 0:00:05]} 34. Rb8 {[%clk 0:01:27]} 1-0


[Site "https://www.chess.com"]

[Event "Titled Tuesday Blitz June 28 Early 2022"]
[White "Nguyen, Quoc Hy"]
[Black "Lucas, Arthur"]
[WhiteFideId "12410853"]
[BlackFideId "26093073"]
[WhiteElo "1938"]
[BlackElo "2129"]
[Result "0-1"]
[Round "03"]
[TimeControl "180+1"]
[Date "2022.06.28"]
[WhiteClock "0:00:12"]
[BlackClock "0:00:14"]

1. d4 {[%clk 0:03:00]}  g6 {[%clk 0:02:57]} 2. c4 {[%clk 0:03:01]}  Bg7 {[%clk 0:02:58]} 3. Nc3 {[%clk 0:03:01]}  Nf6 {[%clk 0:02:59]} 4. e4 {[%clk 0:03:02]}  d6 {[%clk 0:03:00]} 5. Nf3 {[%clk 0:03:01]}  O-O {[%clk 0:03:00]} 6. Be2 {[%clk 0:03:02]}  Na6 {[%clk 0:03:01]} 7. O-O {[%clk 0:03:02]}  e5 {[%clk 0:03:02]} 8. Re1 {[%clk 0:02:47]}  Qe8 {[%clk 0:03:01]} 9. Bf1 {[%clk 0:02:44]}  Bg4 {[%clk 0:02:57]} 10. Bg5 {[%clk 0:02:40]}  exd4 {[%clk 0:02:55]} 11. Nd5 {[%clk 0:02:31]}  Nxd5 {[%clk 0:02:48]} 12. exd5 {[%clk 0:02:31]}  Qd7 {[%clk 0:02:39]} 13. h3 {[%clk 0:02:06]}  Bxf3 {[%clk 0:02:32]} 14. Qxf3 {[%clk 0:02:07]}  Rae8 {[%clk 0:02:27]} 15. Bf6 {[%clk 0:02:04]}  Rxe1 {[%clk 0:01:58]} 16. Rxe1 {[%clk 0:02:02]}  Re8 {[%clk 0:01:59]} 17. Rd1 {[%clk 0:01:56]}  Nb4 {[%clk 0:01:39]} 18. a3 {[%clk 0:00:44]}  Nc2 {[%clk 0:01:22]} 19. Bxg7 {[%clk 0:00:40]}  Kxg7 {[%clk 0:01:23]} 20. Qd3 {[%clk 0:00:31]}  Qf5 {[%clk 0:01:19]} 21. Qxf5 {[%clk 0:00:30]}  gxf5 {[%clk 0:01:20]} 22. Bd3 {[%clk 0:00:30]}  Re1+ {[%clk 0:00:57]} 23. Rxe1 {[%clk 0:00:30]}  Nxe1 {[%clk 0:00:58]} 24. Bxf5 {[%clk 0:00:30]}  d3 {[%clk 0:00:59]} 25. Kf1 {[%clk 0:00:30]}  d2 {[%clk 0:00:59]} 26. Ke2 {[%clk 0:00:12]}  Nxg2 {[%clk 0:01:00]} 27. Kxd2 {[%clk 0:00:12]}  h5 {[%clk 0:00:51]} 28. Kc3 {[%clk 0:00:11]}  Kf6 {[%clk 0:00:46]} 29. Bc8 {[%clk 0:00:11]}  b6 {[%clk 0:00:46]} 30. Kb4 {[%clk 0:00:11]}  a5+ {[%clk 0:00:43]} 31. Kb5 {[%clk 0:00:11]}  Ke7 {[%clk 0:00:43]} 32. Kc6 {[%clk 0:00:11]}  Kd8 {[%clk 0:00:44]} 33. Bf5 {[%clk 0:00:11]}  h4 {[%clk 0:00:40]} 34. b4 {[%clk 0:00:11]}  axb4 {[%clk 0:00:41]} 35. axb4 {[%clk 0:00:11]}  Nf4 {[%clk 0:00:37]} 36. Kb5 {[%clk 0:00:11]}  Ne2 {[%clk 0:00:34]} 37. Bg4 {[%clk 0:00:10]}  Nc3+ {[%clk 0:00:30]} 38. Kc6 {[%clk 0:00:08]}  Na2 {[%clk 0:00:26]} 39. Kb5 {[%clk 0:00:06]}  Nc3+ {[%clk 0:00:25]} 40. Kc6 {[%clk 0:00:06]}  Ne4 {[%clk 0:00:26]} 41. f3 {[%clk 0:00:05]}  Nd2 {[%clk 0:00:16]} 42. c5 {[%clk 0:00:04]}  bxc5 {[%clk 0:00:17]} 43. bxc5 {[%clk 0:00:05]}  Nc4 {[%clk 0:00:13]} 44. cxd6 {[%clk 0:00:04]}  cxd6 {[%clk 0:00:09]} 45. Bh5 {[%clk 0:00:03]}  Ke7 {[%clk 0:00:07]} 46. f4 {[%clk 0:00:03]}  Ne3 {[%clk 0:00:06]} 47. Bf3 {[%clk 0:00:03]}  Nf5 {[%clk 0:00:05]} 48. Bg4 {[%clk 0:00:03]}  Nh6 {[%clk 0:00:04]} 49. Bf3 {[%clk 0:00:03]}  Ng8 {[%clk 0:00:05]} 50. Kc7 {[%clk 0:00:03]}  Nf6 {[%clk 0:00:05]} 51. Kc6 {[%clk 0:00:03]}  Ne8 {[%clk 0:00:05]} 52. Bg4 {[%clk 0:00:03]}  Ng7 {[%clk 0:00:06]} 53. Kc7 {[%clk 0:00:02]}  Ne8+ {[%clk 0:00:06]} 54. Kc6 {[%clk 0:00:02]}  Nf6 {[%clk 0:00:07]} 55. Bf3 {[%clk 0:00:03]}  Nd7 {[%clk 0:00:08]} 56. Bg4 {[%clk 0:00:03]}  Nc5 {[%clk 0:00:09]} 57. Bf3 {[%clk 0:00:03]}  Nd3 {[%clk 0:00:09]} 58. f5 {[%clk 0:00:03]}  Ne5+ {[%clk 0:00:09]} 59. Kc7 {[%clk 0:00:01]}  Nxf3 {[%clk 0:00:10]} 60. f6+ {[%clk 0:00:02]}  Kxf6 {[%clk 0:00:09]} 61. Kxd6 {[%clk 0:00:03]}  Ne5 {[%clk 0:00:07]} 62. Kc5 {[%clk 0:00:02]}  Ke7 {[%clk 0:00:07]} 63. Kd4 {[%clk 0:00:02]}  Nf3+ {[%clk 0:00:05]} 64. Ke4 {[%clk 0:00:02]}  Ng5+ {[%clk 0:00:06]} 65. Kf5 {[%clk 0:00:02]}  Nxh3 {[%clk 0:00:06]} 66. Kg4 {[%clk 0:00:03]}  Nf2+ {[%clk 0:00:06]} 67. Kxh4 {[%clk 0:00:03]}  Ne4 {[%clk 0:00:06]} 68. Kg4 {[%clk 0:00:02]}  Nc3 {[%clk 0:00:06]} 69. d6+ {[%clk 0:00:01]}  Kxd6 {[%clk 0:00:07]} 70. Kf5 {[%clk 0:00:02]}  Ke7 {[%clk 0:00:08]} 71. Ke5 {[%clk 0:00:03]}  Nb5 {[%clk 0:00:08]} 72. Kf5 {[%clk 0:00:03]}  Nd6+ {[%clk 0:00:08]} 73. Ke5 {[%clk 0:00:04]}  f6+ {[%clk 0:00:09]} 74. Kf4 {[%clk 0:00:05]}  Ke6 {[%clk 0:00:10]} 75. Ke3 {[%clk 0:00:06]}  f5 {[%clk 0:00:10]} 76. Kf3 {[%clk 0:00:06]}  Ke5 {[%clk 0:00:11]} 77. Ke3 {[%clk 0:00:07]}  f4+ {[%clk 0:00:12]} 78. Kf3 {[%clk 0:00:08]}  Kf5 {[%clk 0:00:12]} 79. Kf2 {[%clk 0:00:09]}  Ke4 {[%clk 0:00:13]} 80. Ke2 {[%clk 0:00:09]}  f3+ {[%clk 0:00:13]} 81. Kf2 {[%clk 0:00:10]}  Kf4 {[%clk 0:00:14]} 82. Kf1 {[%clk 0:00:11]}  Ke3 {[%clk 0:00:14]} 83. Ke1 {[%clk 0:00:12]}  Ne4 {[%clk 0:00:14]} 0-1


[Site "https://www.chess.com"]

[Event "Titled Tuesday Blitz June 28 Early 2022"]
[White "Novikova, Galina"]
[Black "Vidruska, Renate"]
[WhiteFideId "4157095"]
[BlackFideId "11601841"]
[WhiteElo "1863"]
[BlackElo "1873"]
[Result "0-1"]
[Round "03"]
[TimeControl "180+1"]
[Date "2022.06.28"]
[WhiteClock "0:00:02"]
[BlackClock "0:00:09"]

1. e4 {[%clk 0:03:00]}  e5 {[%clk 0:02:57]} 2. Nf3 {[%clk 0:03:00]}  Nc6 {[%clk 0:02:56]} 3. d4 {[%clk 0:03:00]}  exd4 {[%clk 0:02:56]} 4. Nxd4 {[%clk 0:03:01]}  Nf6 {[%clk 0:02:56]} 5. Nxc6 {[%clk 0:03:02]}  bxc6 {[%clk 0:02:56]} 6. Qe2 {[%clk 0:03:02]}  a5 {[%clk 0:02:52]} 7. Nc3 {[%clk 0:03:02]}  Bb4 {[%clk 0:02:50]} 8. Bd2 {[%clk 0:03:01]}  O-O {[%clk 0:02:50]} 9. O-O-O {[%clk 0:03:00]}  Re8 {[%clk 0:02:49]} 10. f3 {[%clk 0:03:00]}  d5 {[%clk 0:02:48]} 11. e5 {[%clk 0:03:01]}  d4 {[%clk 0:02:46]} 12. Nb1 {[%clk 0:02:36]}  Nd5 {[%clk 0:02:40]} 13. a3 {[%clk 0:02:34]}  Bxd2+ {[%clk 0:02:38]} 14. Nxd2 {[%clk 0:02:35]}  Qg5 {[%clk 0:02:31]} 15. Kb1 {[%clk 0:02:24]}  Rxe5 {[%clk 0:02:26]} 16. Ne4 {[%clk 0:02:22]}  Qe7 {[%clk 0:02:22]} 17. Qc4 {[%clk 0:02:03]}  f5 {[%clk 0:02:08]} 18. Qxc6 {[%clk 0:01:41]}  Rb8 {[%clk 0:02:03]} 19. Bc4 {[%clk 0:01:38]}  Bb7 {[%clk 0:01:43]} 20. Qa4 {[%clk 0:00:35]}  fxe4 {[%clk 0:01:23]} 21. fxe4 {[%clk 0:00:35]}  Rxe4 {[%clk 0:01:21]} 22. Qxa5 {[%clk 0:00:32]}  Re5 {[%clk 0:01:15]} 23. Qa7 {[%clk 0:00:32]}  Qe8 {[%clk 0:00:52]} 24. Qxd4 {[%clk 0:00:27]}  Kh8 {[%clk 0:00:48]} 25. Ka1 {[%clk 0:00:21]}  Nf6 {[%clk 0:00:41]} 26. Bb3 {[%clk 0:00:19]}  c5 {[%clk 0:00:37]} 27. Qd6 {[%clk 0:00:17]}  Rc8 {[%clk 0:00:34]} 28. Qb6 {[%clk 0:00:16]}  Bxg2 {[%clk 0:00:30]} 29. Rhg1 {[%clk 0:00:15]}  Bf3 {[%clk 0:00:30]} 30. Rc1 {[%clk 0:00:11]}  c4 {[%clk 0:00:29]} 31. Ba2 {[%clk 0:00:11]}  c3 {[%clk 0:00:27]} 32. b4 {[%clk 0:00:09]}  Ra8 {[%clk 0:00:23]} 33. Qc7 {[%clk 0:00:08]}  Re7 {[%clk 0:00:22]} 34. Qxc3 {[%clk 0:00:08]}  Bd5 {[%clk 0:00:20]} 35. Bxd5 {[%clk 0:00:06]}  Nxd5 {[%clk 0:00:20]} 36. Qb3 {[%clk 0:00:06]}  Qf7 {[%clk 0:00:14]} 37. Qb2 {[%clk 0:00:05]}  Qe6 {[%clk 0:00:11]} 38. Rce1 {[%clk 0:00:04]}  Qxe1+ {[%clk 0:00:11]} 39. Rxe1 {[%clk 0:00:05]}  Rxe1+ {[%clk 0:00:12]} 40. Ka2 {[%clk 0:00:06]}  Ree8 {[%clk 0:00:10]} 41. c4 {[%clk 0:00:05]}  Nb6 {[%clk 0:00:11]} 42. c5 {[%clk 0:00:05]}  Nc4 {[%clk 0:00:11]} 43. Qd4 {[%clk 0:00:05]}  Nxa3 {[%clk 0:00:11]} 44. Kb3 {[%clk 0:00:04]}  Nb5 {[%clk 0:00:11]} 45. Qd7 {[%clk 0:00:04]}  Rab8 {[%clk 0:00:09]} 46. c6 {[%clk 0:00:03]}  Rec8 {[%clk 0:00:10]} 47. Qe6 {[%clk 0:00:02]}  Nc7 {[%clk 0:00:09]} 48. Qd6 {[%clk 0:00:02]}  Na6 {[%clk 0:00:09]} 49. Qg3 {[%clk 0:00:02]}  Nxb4 {[%clk 0:00:08]} 50. Kc4 {[%clk 0:00:02]}  Nxc6 {[%clk 0:00:09]} 51. Kc5 {[%clk 0:00:02]}  Ne7+ {[%clk 0:00:09]} 52. Kd6 {[%clk 0:00:02]}  Nf5+ {[%clk 0:00:09]} 0-1


[Site "https://www.chess.com"]

[Event "Titled Tuesday Blitz June 28 Early 2022"]
[White "Nunez V, Gustavo Eduardo"]
[Black "Buscar, Michael"]
[WhiteFideId "4403690"]
[BlackFideId "2603616"]
[WhiteElo "2228"]
[BlackElo "2010"]
[Result "1-0"]
[Round "03"]
[TimeControl "180+1"]
[Date "2022.06.28"]
[WhiteClock "0:01:37"]
[BlackClock "0:01:12"]

1. e4 {[%clk 0:03:00]}  c5 {[%clk 0:02:54]} 2. Nc3 {[%clk 0:03:01]}  e6 {[%clk 0:02:53]} 3. g3 {[%clk 0:03:01]}  a6 {[%clk 0:02:52]} 4. a4 {[%clk 0:03:01]}  Qc7 {[%clk 0:02:46]} 5. Bg2 {[%clk 0:03:01]}  Nc6 {[%clk 0:02:42]} 6. d3 {[%clk 0:03:01]}  Be7 {[%clk 0:02:40]} 7. Nge2 {[%clk 0:03:01]}  Nd4 {[%clk 0:02:40]} 8. O-O {[%clk 0:03:01]}  Nxe2+ {[%clk 0:02:40]} 9. Qxe2 {[%clk 0:03:01]}  b6 {[%clk 0:02:40]} 10. f4 {[%clk 0:02:58]}  Bb7 {[%clk 0:02:40]} 11. f5 {[%clk 0:02:59]}  Nf6 {[%clk 0:02:27]} 12. e5 {[%clk 0:02:57]}  Nd5 {[%clk 0:02:12]} 13. Nxd5 {[%clk 0:02:56]}  Bxd5 {[%clk 0:02:03]} 14. Bxd5 {[%clk 0:02:56]}  exd5 {[%clk 0:02:03]} 15. f6 {[%clk 0:02:39]}  Bf8 {[%clk 0:02:02]} 16. fxg7 {[%clk 0:02:33]}  Bxg7 {[%clk 0:02:03]} 17. Qf3 {[%clk 0:02:32]}  Qxe5 {[%clk 0:01:48]} 18. Qxf7+ {[%clk 0:02:31]}  Kd8 {[%clk 0:01:48]} 19. Bf4 {[%clk 0:02:28]}  Qd4+ {[%clk 0:01:45]} 20. Kg2 {[%clk 0:02:25]}  Rf8 {[%clk 0:01:44]} 21. Bg5+ {[%clk 0:02:18]}  Kc8 {[%clk 0:01:42]} 22. Qh5 {[%clk 0:02:09]}  Kb7 {[%clk 0:01:30]} 23. Be7 {[%clk 0:01:39]}  Rxf1 {[%clk 0:01:18]} 24. Rxf1 {[%clk 0:01:40]}  Qxb2 {[%clk 0:01:18]} 25. Qxd5+ {[%clk 0:01:40]}  Kc7 {[%clk 0:01:12]} 26. Bd6+ {[%clk 0:01:37]} 1-0


[Site "https://www.chess.com"]

[Event "Titled Tuesday Blitz June 28 Early 2022"]
[White "Ortega Ruiz, Jose Miguel"]
[Black "Gracia Alvarez, Gerardo Antonio"]
[WhiteFideId "2209713"]
[BlackFideId "5109124"]
[WhiteElo "2292"]
[BlackElo "2139"]
[Result "0-1"]
[Round "03"]
[TimeControl "180+1"]
[Date "2022.06.28"]
[WhiteClock "0:00:08"]
[BlackClock "0:00:23"]

1. c4 {[%clk 0:03:00]}  c5 {[%clk 0:02:59]} 2. Nc3 {[%clk 0:03:00]}  g6 {[%clk 0:02:58]} 3. g3 {[%clk 0:03:01]}  Nc6 {[%clk 0:02:58]} 4. Bg2 {[%clk 0:03:01]}  Bg7 {[%clk 0:02:58]} 5. a3 {[%clk 0:02:57]}  a5 {[%clk 0:02:54]} 6. Nf3 {[%clk 0:02:57]}  e5 {[%clk 0:02:53]} 7. O-O {[%clk 0:02:56]}  Nge7 {[%clk 0:02:53]} 8. d3 {[%clk 0:02:56]}  O-O {[%clk 0:02:52]} 9. Be3 {[%clk 0:02:50]}  d6 {[%clk 0:02:52]} 10. Rb1 {[%clk 0:02:48]}  Rb8 {[%clk 0:02:41]} 11. Nd2 {[%clk 0:02:38]}  Be6 {[%clk 0:02:40]} 12. Nb5 {[%clk 0:02:35]}  Nf5 {[%clk 0:02:35]} 13. b3 {[%clk 0:02:17]}  Nxe3 {[%clk 0:02:26]} 14. fxe3 {[%clk 0:02:18]}  d5 {[%clk 0:02:20]} 15. cxd5 {[%clk 0:02:16]}  Bxd5 {[%clk 0:02:20]} 16. Nc4 {[%clk 0:02:11]}  Bxg2 {[%clk 0:02:13]} 17. Kxg2 {[%clk 0:02:12]}  e4 {[%clk 0:02:04]} 18. a4 {[%clk 0:02:05]}  Qe7 {[%clk 0:02:02]} 19. Qc2 {[%clk 0:01:47]}  Nb4 {[%clk 0:01:50]} 20. Qd2 {[%clk 0:01:36]}  Rbd8 {[%clk 0:01:49]} 21. d4 {[%clk 0:01:32]}  Bh6 {[%clk 0:01:31]} 22. Nxa5 {[%clk 0:01:14]}  cxd4 {[%clk 0:01:25]} 23. Nxd4 {[%clk 0:01:09]}  Nd5 {[%clk 0:01:15]} 24. Nc4 {[%clk 0:01:07]}  Qg5 {[%clk 0:01:13]} 25. Rf4 {[%clk 0:00:50]}  Nxf4+ {[%clk 0:01:12]} 26. exf4 {[%clk 0:00:51]}  e3 {[%clk 0:01:03]} 27. Qxe3 {[%clk 0:00:40]}  Qd5+ {[%clk 0:01:00]} 28. Nf3 {[%clk 0:00:39]}  Rfe8 {[%clk 0:00:59]} 29. Qf2 {[%clk 0:00:32]}  Qe4 {[%clk 0:00:57]} 30. Rb2 {[%clk 0:00:29]}  Bg7 {[%clk 0:00:57]} 31. Rd2 {[%clk 0:00:18]}  Rxd2 {[%clk 0:00:55]} 32. Nxd2 {[%clk 0:00:19]}  Qc2 {[%clk 0:00:55]} 33. e4 {[%clk 0:00:10]}  Bc3 {[%clk 0:00:47]} 34. Qe3 {[%clk 0:00:11]}  Rd8 {[%clk 0:00:40]} 35. e5 {[%clk 0:00:03]}  Bxd2 {[%clk 0:00:40]} 36. Qe2 {[%clk 0:00:03]}  Qxb3 {[%clk 0:00:27]} 37. Nxd2 {[%clk 0:00:03]}  Qc2 {[%clk 0:00:27]} 38. e6 {[%clk 0:00:04]}  Rxd2 {[%clk 0:00:25]} 39. exf7+ {[%clk 0:00:03]}  Kxf7 {[%clk 0:00:25]} 40. Qxd2 {[%clk 0:00:04]}  Qxd2+ {[%clk 0:00:25]} 41. Kg1 {[%clk 0:00:04]}  Kf6 {[%clk 0:00:24]} 42. f5 {[%clk 0:00:05]}  Kxf5 {[%clk 0:00:24]} 43. g4+ {[%clk 0:00:06]}  Kxg4 {[%clk 0:00:24]} 44. h3+ {[%clk 0:00:07]}  Kg3 {[%clk 0:00:23]} 45. Kh1 {[%clk 0:00:08]}  Qh2# {[%clk 0:00:23]} 0-1


[Site "https://www.chess.com"]

[Event "Titled Tuesday Blitz June 28 Early 2022"]
[White "Ouellet, Maili-Jade"]
[Black "Sirosh, Ilja"]
[WhiteFideId "2620472"]
[BlackFideId "4500458"]
[WhiteElo "1899"]
[BlackElo "2241"]
[Result "0-1"]
[Round "03"]
[TimeControl "180+1"]
[Date "2022.06.28"]
[WhiteClock "0:00:02"]
[BlackClock "0:00:48"]

1. d4 {[%clk 0:03:00]}  Nf6 {[%clk 0:02:56]} 2. c4 {[%clk 0:03:00]}  c5 {[%clk 0:02:56]} 3. d5 {[%clk 0:03:00]}  g6 {[%clk 0:02:57]} 4. Nc3 {[%clk 0:03:00]}  Bg7 {[%clk 0:02:57]} 5. e4 {[%clk 0:03:00]}  d6 {[%clk 0:02:58]} 6. f3 {[%clk 0:03:00]}  e6 {[%clk 0:02:57]} 7. Bg5 {[%clk 0:02:59]}  h6 {[%clk 0:02:55]} 8. Be3 {[%clk 0:02:59]}  exd5 {[%clk 0:02:55]} 9. cxd5 {[%clk 0:02:59]}  h5 {[%clk 0:02:40]} 10. Nge2 {[%clk 0:02:49]}  Nbd7 {[%clk 0:02:39]} 11. Qd2 {[%clk 0:02:46]}  a6 {[%clk 0:02:34]} 12. a4 {[%clk 0:02:45]}  Ne5 {[%clk 0:02:33]} 13. Nf4 {[%clk 0:02:41]}  O-O {[%clk 0:02:28]} 14. h4 {[%clk 0:02:38]}  Re8 {[%clk 0:02:27]} 15. Be2 {[%clk 0:02:36]}  Rb8 {[%clk 0:02:20]} 16. Nh3 {[%clk 0:02:05]}  Bd7 {[%clk 0:02:17]} 17. a5 {[%clk 0:01:49]}  Bxh3 {[%clk 0:02:02]} 18. Rxh3 {[%clk 0:01:48]}  Nh7 {[%clk 0:01:53]} 19. Na4 {[%clk 0:01:40]}  f5 {[%clk 0:01:51]} 20. exf5 {[%clk 0:01:31]}  gxf5 {[%clk 0:01:51]} 21. Kf1 {[%clk 0:01:23]}  Kh8 {[%clk 0:01:45]} 22. Nb6 {[%clk 0:01:21]}  Ng6 {[%clk 0:01:45]} 23. Bh6 {[%clk 0:01:08]}  Qe7 {[%clk 0:01:36]} 24. Bxg7+ {[%clk 0:01:07]}  Qxg7 {[%clk 0:01:36]} 25. Nc4 {[%clk 0:01:04]}  Rbd8 {[%clk 0:01:33]} 26. Bd3 {[%clk 0:00:38]}  Ne5 {[%clk 0:01:14]} 27. Nb6 {[%clk 0:00:11]}  Nxd3 {[%clk 0:01:12]} 28. Qxd3 {[%clk 0:00:12]}  f4 {[%clk 0:01:12]} 29. Rb1 {[%clk 0:00:10]}  Qf6 {[%clk 0:01:10]} 30. Nc4 {[%clk 0:00:09]}  Nf8 {[%clk 0:01:07]} 31. Re1 {[%clk 0:00:09]}  Ng6 {[%clk 0:01:06]} 32. Rxe8+ {[%clk 0:00:07]}  Rxe8 {[%clk 0:01:07]} 33. Kf2 {[%clk 0:00:06]}  Ne5 {[%clk 0:01:05]} 34. Nxe5 {[%clk 0:00:05]}  Rxe5 {[%clk 0:01:06]} 35. Rh1 {[%clk 0:00:04]}  Re3 {[%clk 0:01:06]} 36. Qd2 {[%clk 0:00:04]}  Rb3 {[%clk 0:01:04]} 37. Kg1 {[%clk 0:00:03]}  Rxb2 {[%clk 0:01:04]} 38. Qe1 {[%clk 0:00:02]}  Qe5 {[%clk 0:00:58]} 39. Kh2 {[%clk 0:00:02]}  Re2 {[%clk 0:00:48]} 40. Qb1 {[%clk 0:00:02]}  Qg7 {[%clk 0:00:48]} 41. Rg1 {[%clk 0:00:01]}  Qg3+ {[%clk 0:00:47]} 42. Kh1 {[%clk 0:00:02]}  Qxh4# {[%clk 0:00:48]} 0-1


[Site "https://www.chess.com"]

[Event "Titled Tuesday Blitz June 28 Early 2022"]
[White "Ozdemir, Serhan Berat"]
[Black "Dinu, Dumitru-Daniel"]
[WhiteFideId "6374611"]
[BlackFideId "1208403"]
[WhiteElo "1920"]
[BlackElo "2240"]
[Result "1-0"]
[Round "03"]
[TimeControl "180+1"]
[Date "2022.06.28"]
[WhiteClock "0:01:05"]
[BlackClock "0:00:31"]

1. e4 {[%clk 0:03:00]}  c5 {[%clk 0:03:00]} 2. Nf3 {[%clk 0:03:00]}  d6 {[%clk 0:02:59]} 3. d4 {[%clk 0:03:00]}  cxd4 {[%clk 0:02:59]} 4. Nxd4 {[%clk 0:03:01]}  Nf6 {[%clk 0:03:00]} 5. Nc3 {[%clk 0:03:02]}  g6 {[%clk 0:02:59]} 6. Be3 {[%clk 0:03:02]}  Bg7 {[%clk 0:02:59]} 7. f3 {[%clk 0:03:03]}  Nc6 {[%clk 0:03:00]} 8. Qd2 {[%clk 0:03:01]}  O-O {[%clk 0:03:00]} 9. Bc4 {[%clk 0:03:02]}  Nxd4 {[%clk 0:02:59]} 10. Bxd4 {[%clk 0:03:01]}  a6 {[%clk 0:03:00]} 11. O-O-O {[%clk 0:02:47]}  b5 {[%clk 0:03:00]} 12. Bb3 {[%clk 0:02:44]}  Be6 {[%clk 0:03:00]} 13. h4 {[%clk 0:02:38]}  Bxb3 {[%clk 0:02:54]} 14. axb3 {[%clk 0:02:39]}  a5 {[%clk 0:02:52]} 15. h5 {[%clk 0:02:27]}  a4 {[%clk 0:02:47]} 16. b4 {[%clk 0:02:27]}  a3 {[%clk 0:02:46]} 17. b3 {[%clk 0:02:26]}  Qc7 {[%clk 0:02:40]} 18. hxg6 {[%clk 0:02:20]}  fxg6 {[%clk 0:02:40]} 19. g4 {[%clk 0:02:18]}  e5 {[%clk 0:02:20]} 20. Be3 {[%clk 0:01:48]}  Rfc8 {[%clk 0:02:08]} 21. Nxb5 {[%clk 0:01:39]}  Qd7 {[%clk 0:01:57]} 22. Nxd6 {[%clk 0:01:37]}  Rc6 {[%clk 0:01:41]} 23. Nc4 {[%clk 0:01:35]}  Qc7 {[%clk 0:01:41]} 24. Kb1 {[%clk 0:01:25]}  Bf8 {[%clk 0:01:30]} 25. g5 {[%clk 0:01:22]}  Nh5 {[%clk 0:01:22]} 26. Qd5+ {[%clk 0:01:19]}  Kh8 {[%clk 0:01:21]} 27. b5 {[%clk 0:01:19]}  a2+ {[%clk 0:01:10]} 28. Ka1 {[%clk 0:01:18]}  Rxc4 {[%clk 0:00:49]} 29. Qxa8 {[%clk 0:01:18]}  Kg7 {[%clk 0:00:31]} 30. bxc4 {[%clk 0:01:10]}  Qxc4 {[%clk 0:00:32]} 31. Rd7+ {[%clk 0:01:07]}  Kg8 {[%clk 0:00:31]} 32. Qd5+ {[%clk 0:01:05]} 1-0


[Site "https://www.chess.com"]